[Event "Austrian Women Bundesliga 2023-24"]
[Site "Austria"]
[Date "2024.04.14"]
[Round "9.2"]
[White "Radeva, Viktoria"]
[Black "Frey, Alisa"]
[Result "1-0"]
[ECO "C55"]
[WhiteElo "2315"]
[BlackElo "2016"]
[Annotator "TA"]
[PlyCount "73"]
[EventDate "2023.11.21"]
[EventType "team-tourn"]
[EventCountry "AUT"]
[SourceTitle "playchess.com"]
[Source "ChessBase"]
[SourceQuality "1"]
[TimeControl "40/5400+30:1800+30"]

{[%evp 13,73,37,39,33,34,37,49,59,40,39,56,43,57,41,81,77,84,58,97,59,77,51,441,409,407,406,393,322,327,330,325,322,435,443,562,510,527,510,525,520,506,453,496,487,549,547,631,655,641,641,606,585,799,818,1006,1032,1035,1035,1032,1031,1020,1020]} 1. e4 {[%emt 0:00:03]} e5 {[%emt 0:00:04]} 2. Nf3 {[%emt 0:00:04]} Nc6 {[%emt 0:00:08]} 3. Bc4 {[%emt 0:00:11]} Nf6 {[%emt 0:00:05]} 4. d3 {[%emt 0:00:04]} Be7 {[%emt 0:00:06]} 5. O-O {[%emt 0:00:20]} O-O {[%emt 0:00:06]} 6. Re1 {[%emt 0:00:13]} d6 {[%emt 0:00:09]} 7. a4 {[%emt 0:00:16]} Be6 {[%emt 0:00:07]} 8. Bxe6 {[%emt 0:01:25]} fxe6 {[%emt 0:00:06]} 9. c3 {[%emt 0:01:02]} Qd7 {[%emt 0:00:46]} 10. b4 {[%emt 0:00:57] White is slightly better.} a6 {[%emt 0:01:28]} 11. Nbd2 {[%emt 0:02:22]} Rfe8 {[%emt 0:06:19]} 12. Nf1 {[%emt 0:01:56]} Bf8 {[%emt 0:01:22]} 13. Ng3 {[%emt 0:04:14]} b5 {[%emt 0:05:57]} 14. Bg5 {[%emt 0:04:04]} Qf7 {[%emt 0:08:04]} 15. Qb3 {[%emt 0:03:44]} d5 {[%emt 0:13:27]} 16. h3 {[%emt 0:07:53] White is more active.} Nd7 {[%emt 0:06:31]} 17. Be3 {[%emt 0:04:39] [#] Black must now prevent Ng5.} Bd6 $2 {[%emt 0:02:22][%mdl 8192] A mistake that costs the game.} ({Better is} 17... h6 $14) 18. exd5 {[%emt 0:06:37]} bxa4 {[%emt 0:06:35]} 19. Qxa4 {[%emt 0:13:29]} Nd8 {[%emt 0:01:10]} 20. Ng5 {[%emt 0:00:54]} Qe7 {[%emt 0:03:08]} 21. dxe6 {[%emt 0:01:03]} Nxe6 {[%emt 0:02:45] Black is weak on the light squares} 22. Nf5 {[%emt 0:05:17]} Qd8 {[%emt 0:00:22]} 23. Qb3 {[%emt 0:04:41] White is clearly winning.} Ndf8 {[%emt 0:15:47]} 24. d4 {[%emt 0:03:21]} h6 {[%emt 0:06:12]} 25. Nxe6 {[%emt 0:01:08]} Nxe6 {[%emt 0:05:00]} 26. dxe5 {[%emt 0:00:32]} Bf8 {[%emt 0:04:20]} 27. Qc4 {[%emt 0:01:42]} Qc8 {[%emt 0:01:36]} 28. Qc6 {[%emt 0:04:52]} Kh8 {[%emt 0:02:02]} 29. Nh4 {[%emt 0:02:15]} Kh7 {[%emt 0:02:55]} 30. f4 {[%emt 0:01:27][%cal Bf2f4,Bf4f5,Bf5f6][%mdl 32]} Be7 {[%emt 0:02:59]} 31. Qe4+ {[%emt 0:02:33]} Kg8 {[%emt 0:00:08]} 32. Ng6 {[%emt 0:00:34]} c5 {[%emt 0:01:15]} 33. f5 {[%emt 0:01:20]} Ng5 {[%emt 0:02:39]} 34. Qd5+ {[%emt 0:01:43]} Kh7 {[%emt 0:00:32]} 35. Nxe7 {[%emt 0:01:08]} Rxe7 {[%emt 0:00:05]} 36. Bxg5 {[%emt 0:01:06]} hxg5 {[%emt 0:00:31]} 37. f6 {[%emt 0:00:21] Weighted Error Value: White=0.16 (very precise) /Black=0.53.  Loses game:     	---       	Black=1      Inaccurate:     	White=3     	Black=3      OK:         	White=11    	Black=7      Best:        	---       	Black=1} 1-0

[Event "Austrian Women Bundesliga 2023-24"]
[Site "Austria"]
[Date "2024.04.14"]
[Round "9.3"]
[White "Batyte, Daiva"]
[Black "Khrapko, Marharyta"]
[Result "0-1"]
[ECO "A45"]
[WhiteElo "2046"]
[BlackElo "2218"]
[Annotator "TA"]
[PlyCount "42"]
[EventDate "2023.11.21"]
[EventType "team-tourn"]
[EventCountry "AUT"]
[SourceTitle "playchess.com"]
[Source "ChessBase"]
[SourceQuality "1"]
[TimeControl "40/5400+30:1800+30"]

{[%evp 9,42,-7,-16,-18,-18,-20,-16,-13,-20,-27,-33,-37,-19,-68,-53,-86,-85,-89,-89,-90,-100,-97,-39,-47,-49,-41,0,-124,-60,-412,-391,-385,-343,-1521,-1499]} 1. d4 {[%emt 0:00:02]} Nf6 {[%emt 0:02:32]} 2. g3 {[%emt 0:01:51]} c5 {[%emt 0:01:09]} 3. d5 {[%emt 0:00:42]} e6 {[%emt 0:01:06]} 4. dxe6 {[%emt 0:03:02]} fxe6 {[%emt 0:00:14]} 5. Bg2 {[%emt 0:00:17]} d5 {[%emt 0:00:39]} 6. c4 {[%emt 0:01:37]} d4 {[%emt 0:04:20]} 7. e3 {[%emt 0:01:45]} e5 {[%emt 0:06:42]} 8. exd4 {[%emt 0:01:15] The position is equal.} exd4 {[%emt 0:00:26]} 9. Ne2 {[%emt 0:01:32]} Nc6 {[%emt 0:04:00]} 10. O-O {[%emt 0:00:28]} Bd6 {[%emt 0:00:53]} 11. Bf4 {[%emt 0:06:46]} (11. Bg5 $11 {should be considered.}) 11... O-O $15 {[%emt 0:06:00]} 12. Bxd6 {[%emt 0:03:09]} Qxd6 {[%emt 0:00:50]} 13. Nd2 {[%emt 0:00:30]} Bg4 {[%emt 0:01:47]} 14. h3 {[%emt 0:07:15]} Bh5 {[%emt 0:03:31]} 15. g4 {[%emt 0:00:33] [#]} Bxg4 {[%emt 0:16:38]} 16. hxg4 {[%emt 0:02:04]} Nxg4 {[%emt 0:00:14]} 17. Ng3 {[%emt 0:00:53]} Nce5 {[%emt 0:02:09][%mdl 1024] ( -> ...Qh6). Black has compensation.} 18. Bh3 {[%emt 0:07:50]} (18. Bxb7 {leads to mate.} Qh6) (18. Bd5+ $11 {keeps the balance.} Kh8 19. f4) 18... Rf4 {[%emt 0:04:53] Black has more active pieces.} (18... Qg6 $17 {[%cal Og4f2] Hoping for ...Nxf2!} 19. Qe2 Rae8) 19. f3 {[%emt 0:15:04][%mdl 8192] [#]} (19. Nh5 $15 Qh6 20. Nxf4 Qxf4 21. Bxg4 Nxg4 22. Nf3) 19... Ne3 $1 $19 {[%emt 0:01:00][%csl LRc4,LRd1,LRf1]} 20. Qe2 {[%emt 0:00:50]} Qg6 {[%emt 0:05:38]} 21. Kf2 {[%emt 0:03:12]} (21. Qh2) 21... Nd3+ {[%emt 0:00:18] Weighted Error Value: White=0.81/Black=0.20 (precise) .  Loses game:     	White=1     	---        Mistake:       	White=3     	Black=2      Inaccurate:     	White=1     	Black=1      OK:         	White=5     	Black=6      Best:        	White=1     	Black=1} 0-1

[Event "Austrian Women Bundesliga 2023-24"]
[Site "Austria"]
[Date "2024.04.14"]
[Round "9.4"]
[White "Anker, Christin"]
[Black "Landl, Margot"]
[Result "0-1"]
[ECO "C54"]
[WhiteElo "1914"]
[BlackElo "1962"]
[Annotator "NA RC"]
[PlyCount "104"]
[EventDate "2023.11.21"]
[EventType "team-tourn"]
[EventCountry "AUT"]
[SourceTitle "playchess.com"]
[Source "ChessBase"]
[SourceQuality "1"]
[TimeControl "40/5400+30:1800+30"]

1. e4 {[%emt 0:00:02]} e5 {[%emt 0:00:08]} 2. Nf3 {[%emt 0:00:05]} Nc6 {[%emt 0:00:11]} 3. Bc4 {[%emt 0:00:06]} Bc5 {[%emt 0:00:11]} 4. c3 {[%emt 0:00:28]} Nf6 {[%emt 0:00:32]} 5. d3 {[%emt 0:00:38]} O-O {[%emt 0:00:42]} 6. Bg5 {[%emt 0:02:27]} h6 {[%emt 0:02:15]} 7. Bh4 {[%emt 0:00:32]} Be7 {[%emt 0:00:44]} 8. O-O {[%emt 0:05:40]} Nh5 {[%emt 0:06:37]} 9. Bxe7 {[%emt 0:20:37]} Qxe7 {[%emt 0:00:37]} 10. Re1 {[%emt 0:04:55]} d6 {[%emt 0:03:45]} 11. Nbd2 {[%emt 0:01:13]} Be6 {[%emt 0:15:48]} 12. Bxe6 {[%emt 0:04:14]} Qxe6 {[%emt 0:17:36]} 13. Nc4 {[%emt 0:05:01]} Nf4 {[%emt 0:02:15]} 14. Ne3 {[%emt 0:01:37]} Ne7 {[%emt 0:03:20]} 15. Nh4 {[%emt 0:02:02]} Kh7 {[%emt 0:03:42]} 16. Nhf5 {[%emt 0:07:40]} g6 {[%emt 0:02:09]} 17. Nxe7 {[%emt 0:00:34]} Qxe7 {[%emt 0:00:05]} 18. Nd5 {[%emt 0:00:57]} Nxd5 {[%emt 0:02:00]} 19. exd5 {[%emt 0:00:07]} Rae8 {[%emt 0:02:27]} 20. f4 {[%emt 0:05:09]} Qf6 {[%emt 0:05:14]} 21. fxe5 {[%emt 0:01:07]} Rxe5 {[%emt 0:01:00]} 22. Rxe5 {[%emt 0:00:15]} Qxe5 {[%emt 0:00:34]} 23. Qf3 {[%emt 0:00:57]} f5 {[%emt 0:04:32]} 24. d4 {[%emt 0:01:27]} Qe7 {[%emt 0:00:21]} 25. Kf1 {[%emt 0:09:41]} Re8 {[%emt 0:03:20]} 26. Qf2 {[%emt 0:01:22]} Kg7 {[%emt 0:01:33]} 27. Re1 {[%emt 0:07:37]} Qxe1+ {[%emt 0:00:44]} 28. Qxe1 {[%emt 0:00:02]} Rxe1+ {[%emt 0:00:06]} 29. Kxe1 {[%emt 0:00:08]} f4 {[%emt 0:01:00]} 30. Ke2 {[%emt 0:00:18]} Kf6 {[%emt 0:00:14]} 31. Kf3 {[%emt 0:01:34]} Kf5 {[%emt 0:00:06]} 32. g3 {[%emt 0:04:29]} fxg3 {[%emt 0:00:49]} 33. hxg3 {[%emt 0:00:09]} h5 {[%emt 0:01:07]} 34. a4 {[%emt 0:01:27]} g5 {[%emt 0:02:06]} 35. b4 {[%emt 0:00:38]} g4+ {[%emt 0:01:18]} 36. Ke3 {[%emt 0:00:53]} Kg5 {[%emt 0:00:18]} 37. b5 {[%emt 0:06:30]} h4 {[%emt 0:00:15]} 38. gxh4+ {[%emt 0:00:17]} Kxh4 {[%emt 0:00:08]} 39. Kf2 {[%emt 0:00:04]} Kg5 {[%emt 0:07:22]} 40. c4 {[%emt 0:06:40]} b6 {[%emt 0:05:46]} 41. c5 {[%emt 0:03:28]} Kf4 {[%emt 0:01:17]} 42. cxd6 {[%emt 0:04:48]} cxd6 {[%emt 0:00:07]} 43. Kg2 {[%emt 0:00:32]} g3 {[%emt 0:03:36]} 44. Kg1 {[%emt 0:01:08]} Ke3 {[%emt 0:01:16]} 45. Kg2 {[%emt 0:00:23]} Kxd4 {[%emt 0:00:34]} 46. Kxg3 {[%emt 0:00:09]} Kxd5 {[%emt 0:00:04]} 47. Kf3 {[%emt 0:00:17]} Kc4 {[%emt 0:00:05]} 48. Ke4 {[%emt 0:00:40]} d5+ {[%emt 0:00:21]} 49. Ke3 {[%emt 0:00:08]} Kc3 {[%emt 0:00:46]} 50. Ke2 {[%emt 0:00:16]} d4 {[%emt 0:00:29]} 51. Kd1 {[%emt 0:00:26]} Kd3 {[%emt 0:01:00]} 52. Kc1 {[%emt 0:00:12]} Ke2 {[%emt 0:00:05]} 0-1

[Event "Austrian Women Bundesliga 2023-24"]
[Site "Austria"]
[Date "2024.04.14"]
[Round "9.5"]
[White "Urh, Zala"]
[Black "Berke, Ana"]
[Result "1-0"]
[ECO "D35"]
[WhiteElo "2263"]
[BlackElo "2066"]
[Annotator "RC"]
[PlyCount "125"]
[EventDate "2023.11.21"]
[EventType "team-tourn"]
[EventCountry "AUT"]
[SourceTitle "playchess.com"]
[Source "ChessBase"]
[SourceQuality "1"]
[TimeControl "40/5400+30:1800+30"]

1. d4 {[%emt 0:00:02]} d5 {[%emt 0:00:19]} 2. c4 {[%emt 0:00:12]} e6 {[%emt 0:00:08]} 3. Nc3 {[%emt 0:00:14]} Nf6 {[%emt 0:00:29]} 4. cxd5 {[%emt 0:02:03]} exd5 {[%emt 0:00:08]} 5. Bg5 {[%emt 0:00:06]} c6 {[%emt 0:00:09]} 6. e3 {[%emt 0:00:31]} Bf5 {[%emt 0:01:29]} 7. Qf3 {[%emt 0:07:42]} Bg6 {[%emt 0:00:14]} 8. Bxf6 {[%emt 0:00:03]} Qxf6 {[%emt 0:00:03]} 9. Qxf6 {[%emt 0:00:04]} gxf6 {[%emt 0:00:04]} 10. h4 {[%emt 0:01:23]} h5 {[%emt 0:07:21]} 11. Nh3 {[%emt 0:03:18]} Nd7 {[%emt 0:01:15]} 12. Kd2 {[%emt 0:03:31]} O-O-O {[%emt 0:03:50]} 13. Bd3 {[%emt 0:05:10]} c5 {[%emt 0:06:35]} 14. Rac1 {[%emt 0:23:37]} Kb8 {[%emt 0:01:52]} 15. Ne2 {[%emt 0:11:32]} cxd4 {[%emt 0:06:00]} 16. Nxd4 {[%emt 0:00:06]} Ne5 {[%emt 0:03:22]} 17. Bxg6 {[%emt 0:04:25]} fxg6 {[%emt 0:03:04]} 18. Nf4 {[%emt 0:00:20]} Bh6 {[%emt 0:03:58]} 19. Nfe6 {[%emt 0:10:25]} Rd6 {[%emt 0:07:46]} 20. Rc7 {[%emt 0:06:20]} Rc8 {[%emt 0:11:00]} 21. Rxc8+ {[%emt 0:05:58]} Kxc8 {[%emt 0:00:09]} 22. Rc1+ {[%emt 0:00:03]} Nc6 {[%emt 0:03:34]} 23. b4 {[%emt 0:05:44]} Kb8 {[%emt 0:02:58]} 24. b5 {[%emt 0:00:44]} Nxd4 {[%emt 0:01:56]} 25. Nxd4 {[%emt 0:00:05]} Bf8 {[%emt 0:01:31]} 26. Kd3 {[%emt 0:01:29]} Rd7 {[%emt 0:03:14]} 27. Rg1 {[%emt 0:06:18]} f5 {[%emt 0:04:57]} 28. Rc1 {[%emt 0:00:03]} Be7 {[%emt 0:01:18]} 29. g3 {[%emt 0:00:17]} Bf6 {[%emt 0:01:52]} 30. a4 {[%emt 0:00:34]} Bd8 {[%emt 0:02:47]} 31. Nb3 {[%emt 0:02:09]} Bf6 {[%emt 0:00:58]} 32. Nd4 {[%emt 0:00:56]} Bd8 {[%emt 0:00:42]} 33. Ne2 {[%emt 0:00:01]} Bb6 {[%emt 0:01:25]} 34. Rc2 {[%emt 0:00:06]} Rd6 {[%emt 0:02:17]} 35. Rd2 {[%emt 0:01:28]} Kc7 {[%emt 0:08:16]} 36. Kc2 {[%emt 0:00:10]} Kd7 {[%emt 0:00:39]} 37. Kb3 {[%emt 0:00:47]} Bc5 {[%emt 0:00:39]} 38. a5 {[%emt 0:00:50]} b6 {[%emt 0:04:50]} 39. a6 {[%emt 0:00:12]} Ke6 {[%emt 0:00:36]} 40. Nd4+ {[%emt 0:00:49]} Kf6 {[%emt 0:02:19]} 41. Nc6 {[%emt 0:03:33]} Rd7 {[%emt 0:01:04]} 42. Rd1 {[%emt 0:02:18]} Ke6 {[%emt 0:03:02]} 43. Kc3 {[%emt 0:05:13]} Kf6 {[%emt 0:01:14]} 44. Kd3 {[%emt 0:00:57]} Ke6 {[%emt 0:01:26]} 45. f3 {[%emt 0:03:01]} Kf6 {[%emt 0:07:17]} 46. Rg1 {[%emt 0:00:58]} Ke6 {[%emt 0:04:05]} 47. Rg2 {[%emt 0:00:48]} Kf6 {[%emt 0:03:26]} 48. g4 {[%emt 0:01:29]} hxg4 {[%emt 0:02:43]} 49. fxg4 {[%emt 0:00:05]} fxg4 {[%emt 0:00:35]} 50. Rxg4 {[%emt 0:00:06]} Rh7 {[%emt 0:02:42]} 51. Ke2 {[%emt 0:04:03]} Kf5 {[%emt 0:03:42]} 52. Rg5+ {[%emt 0:01:11]} Kf6 {[%emt 0:00:24]} 53. Rxd5 {[%emt 0:01:05]} Rxh4 {[%emt 0:00:11]} 54. Nxa7 {[%emt 0:00:59]} Ke6 {[%emt 0:05:39]} 55. Rd8 {[%emt 0:01:46]} Be7 {[%emt 0:02:07]} 56. Rb8 {[%emt 0:00:50]} Bd6 {[%emt 0:00:51]} 57. Rxb6 {[%emt 0:02:12]} Kd5 {[%emt 0:00:12]} 58. Nc8 {[%emt 0:01:24]} Bc5 {[%emt 0:00:21]} 59. a7 {[%emt 0:00:33]} Ra4 {[%emt 0:02:14]} 60. Ra6 {[%emt 0:00:17]} Rxa6 {[%emt 0:00:31]} 61. bxa6 {[%emt 0:00:08]} Bxa7 {[%emt 0:00:16]} 62. Nxa7 {[%emt 0:00:05]} Kc5 {[%emt 0:00:15]} 63. Nb5 {[%emt 0:00:21]} 1-0

[Event "Austrian Women Bundesliga 2023-24"]
[Site "Austria"]
[Date "2024.04.14"]
[Round "9.6"]
[White "Kejzar, Petra"]
[Black "Janzelj, Lara"]
[Result "0-1"]
[ECO "D23"]
[WhiteElo "2049"]
[BlackElo "2167"]
[Annotator "TA"]
[PlyCount "96"]
[EventDate "2023.11.21"]
[EventType "team-tourn"]
[EventCountry "AUT"]
[SourceTitle "playchess.com"]
[Source "ChessBase"]
[SourceQuality "1"]
[TimeControl "40/5400+30:1800+30"]

{[%evp 22,96,6,10,24,14,34,25,37,3,15,6,35,-43,44,0,31,22,56,55,70,72,63,70,114,24,18,-29,50,0,0,0,0,0,0,-93,-73,-69,-85,-145,-66,-95,-94,-141,-61,-218,-204,-255,-231,-414,-414,-437,-384,-375,-376,-367,-302,-331,-284,-310,-312,-396,-396,-715,-383,-708,-700,-962,-953,-886,-1063,-1136,-1148,-877,-1097,-1048,-1004]} 1. d4 {[%emt 0:00:04]} d5 {[%emt 0:00:08]} 2. c4 {[%emt 0:00:06]} c6 {[%emt 0:00:06]} 3. Nf3 {[%emt 0:00:16]} Nf6 {[%emt 0:00:06]} 4. Qb3 {[%emt 0:00:44]} dxc4 {[%emt 0:00:26]} 5. Qxc4 {[%emt 0:00:07]} Bf5 {[%emt 0:00:38]} 6. g3 {[%emt 0:00:20]} e6 {[%emt 0:00:23]} 7. Bg2 {[%emt 0:00:26]} Be7 {[%emt 0:00:54]} 8. O-O {[%emt 0:01:00]} O-O {[%emt 0:01:42]} 9. Nc3 {[%emt 0:09:48]} Nbd7 {[%emt 0:01:07]} 10. e3 {[%emt 0:01:20]} Ne4 {[%emt 0:08:14]} 11. Nd2 {[%emt 0:07:44]} Nxd2 {[%emt 0:02:16]} 12. Bxd2 {[%emt 0:00:06]} Bg6 {[%emt 0:03:45]} 13. Qe2 {[%emt 0:04:56]} Nf6 {[%emt 0:08:44]} 14. Rfc1 {[%emt 0:10:08]} Qd6 {[%emt 0:06:36] White has an edge.} 15. f4 {[%emt 0:06:26]} Rfd8 {[%emt 0:04:10]} 16. Be1 {[%emt 0:01:55]} Rac8 {[%emt 0:05:25] [#]} 17. b4 {[%emt 0:05:27]} Nd5 {[%emt 0:04:00]} (17... Qxb4 $15 18. Nd5 Qa3 (18... cxd5 $2 19. Bxb4 Bxb4 20. Qb2 $18) 19. Nxf6+ gxf6 (19... Bxf6 20. Rc3 $17)) 18. Ne4 {[%emt 0:06:35]} Qb8 {[%emt 0:00:19]} 19. a3 {[%emt 0:01:25]} b6 {[%emt 0:03:48]} 20. Nf2 {[%emt 0:10:28]} Bf8 {[%emt 0:12:29]} 21. e4 {[%emt 0:01:43]} Nf6 {[%emt 0:00:27]} 22. Bc3 {[%emt 0:00:22]} c5 {[%emt 0:03:35]} 23. dxc5 {[%emt 0:01:55]} ({Better is} 23. bxc5 $16 h5 (23... bxc5 24. d5 $16) 24. Rab1) 23... bxc5 $11 {[%emt 0:00:25]} 24. h4 {[%emt 0:12:08]} (24. b5 {is superior.}) 24... Nh5 {[%emt 0:05:30]} (24... cxb4 $11 25. Bxb4 Bxb4 26. axb4 Rxc1+ (26... Qxb4 27. Rxc8 Rxc8 28. Rxa7 $15) 27. Rxc1 Qxb4) 25. Qf3 {[%emt 0:03:32]} (25. Be5 $1 $14 Bd6 (25... Nxg3 26. Qe3 $16) 26. Bxd6 Qxd6 27. Qe3 cxb4 28. axb4) 25... cxb4 {[%emt 0:01:58]} 26. axb4 {[%emt 0:00:47]} f5 {[%emt 0:00:45]} (26... Bxb4 27. Bxb4 Qxb4 28. Rxc8 Rxc8 29. f5 $14) 27. exf5 {[%emt 0:03:43]} exf5 {[%emt 0:00:05]} 28. Be5 {[%emt 0:01:38]} (28. Be1 $11) 28... Rxc1+ $17 {[%emt 0:02:07]} 29. Rxc1 {[%emt 0:00:01]} Qxb4 {[%emt 0:00:25]} 30. Nd3 {[%emt 0:01:18] [#]} (30. Kh2 $142) 30... Qb5 {[%emt 0:02:18]} (30... Qd2 $1 $17 31. Rd1 Qc2) 31. Bf1 {[%emt 0:00:31]} Bf7 {[%emt 0:01:52]} 32. Kh2 {[%emt 0:09:31]} (32. Nf2 $142 Qb6 33. Bc7) 32... a5 {[%emt 0:03:25]} (32... Nf6 $17 {...Ng4+ would now be deadly.} 33. Nf2 Qb4) 33. Ba1 $2 {[%emt 0:00:00] Now White is beyond hope.} ({White should play} 33. Bc3 $1 $15) 33... Qb3 $19 {[%emt 0:02:05] ...Nf6 is the strong threat.} 34. Be2 {[%emt 0:00:00]} Nf6 {[%emt 0:03:12]} 35. Bxf6 $2 {[%emt 0:00:00]} (35. Ne5 Qxf3 36. Bxf3) 35... gxf6 {[%emt 0:00:01]} 36. g4 {[%emt 0:00:00]} fxg4 {[%emt 0:01:53]} 37. Qxg4+ {[%emt 0:00:00]} Kh8 {[%emt 0:00:18][%cal Oa5a4]} 38. Qf5 {[%emt 0:00:08]} Qe6 {[%emt 0:00:50]} 39. Qxe6 {[%emt 0:01:46]} Bxe6 {[%emt 0:00:02]} 40. Rc6 {[%emt 0:01:16]} Bd6 {[%emt 0:07:32]} 41. Kg3 {[%emt 0:03:12]} a4 {[%emt 0:04:42]} 42. Nb2 $2 {[%emt 0:06:37]} (42. Nc5 Bd5 43. Rxd6 Rxd6 44. Nxa4) 42... Bd5 {[%emt 0:06:48]} 43. Ra6 $2 {[%emt 0:02:06]} (43. Rxd6 Rxd6 44. Nxa4) 43... a3 {[%emt 0:07:29] Black is clearly winning.} 44. Nc4 {[%emt 0:01:19]} Rg8+ {[%emt 0:00:34]} 45. Kf2 {[%emt 0:02:28]} Rg2+ {[%emt 0:02:26]} 46. Kf1 {[%emt 0:00:02]} Bc5 {[%emt 0:00:39][%csl Gc5][%cal Rg2g1] This pair of bishops is nice.} 47. Bd3 {[%emt 0:00:49]} a2 {[%emt 0:00:52]} 48. Ke1 {[%emt 0:00:36]} Rg1+ {[%emt 0:00:19] Weighted Error Value: White=0.64/Black=0.35.  Mistake:       	White=11    	Black=4      Inaccurate:     	White=4     	Black=5      OK:         	White=6     	Black=8      Best:        	White=1     	Black=2} 0-1

[Event "Austrian Women Bundesliga 2023-24"]
[Site "Austria"]
[Date "2024.04.14"]
[Round "9.7"]
[White "Hercog, Nusa"]
[Black "Hiebler, Laura"]
[Result "1/2-1/2"]
[ECO "E43"]
[WhiteElo "2034"]
[BlackElo "1999"]
[Annotator "NA RC"]
[PlyCount "64"]
[EventDate "2023.11.21"]
[EventType "team-tourn"]
[EventCountry "AUT"]
[SourceTitle "playchess.com"]
[Source "ChessBase"]
[SourceQuality "1"]
[TimeControl "40/5400+30:1800+30"]

1. d4 {[%emt 0:00:04]} Nf6 {[%emt 0:00:08]} 2. c4 {[%emt 0:00:05]} e6 {[%emt 0:00:06]} 3. Nc3 {[%emt 0:00:04]} Bb4 {[%emt 0:00:31]} 4. Nf3 {[%emt 0:00:09]} b6 {[%emt 0:00:33]} 5. e3 {[%emt 0:00:14]} Bb7 {[%emt 0:00:39]} 6. Bd3 {[%emt 0:00:26]} O-O {[%emt 0:02:26]} 7. O-O {[%emt 0:00:16]} d6 {[%emt 0:06:37]} 8. Na4 {[%emt 0:01:06]} d5 {[%emt 0:02:28]} 9. c5 {[%emt 0:03:36]} bxc5 {[%emt 0:04:03]} 10. a3 {[%emt 0:00:28]} c4 {[%emt 0:02:12]} 11. Bxh7+ {[%emt 0:00:39]} Nxh7 {[%emt 0:01:59]} 12. axb4 {[%emt 0:00:07]} Nd7 {[%emt 0:00:37]} 13. b3 {[%emt 0:04:55]} cxb3 {[%emt 0:02:02]} 14. Qxb3 {[%emt 0:00:43]} Ba6 {[%emt 0:14:35]} 15. Re1 {[%emt 0:00:12]} Bc4 {[%emt 0:00:15]} 16. Qc3 {[%emt 0:01:40]} Nhf6 {[%emt 0:01:00]} 17. Nd2 {[%emt 0:00:59]} Bb5 {[%emt 0:01:53]} 18. f3 {[%emt 0:04:59]} c6 {[%emt 0:04:47]} 19. e4 {[%emt 0:04:52]} a5 {[%emt 0:03:57]} 20. Bb2 {[%emt 0:11:16]} axb4 {[%emt 0:05:05]} 21. Qxb4 {[%emt 0:00:25]} Bxa4 {[%emt 0:00:06]} 22. Rxa4 {[%emt 0:00:15]} Qb6 {[%emt 0:05:13]} 23. Qxb6 {[%emt 0:02:39]} Nxb6 {[%emt 0:00:06]} 24. Rxa8 {[%emt 0:00:59]} Rxa8 {[%emt 0:00:01]} 25. Ra1 {[%emt 0:00:10]} Rxa1+ {[%emt 0:00:39]} 26. Bxa1 {[%emt 0:00:04]} Nfd7 {[%emt 0:00:27]} 27. Kf2 {[%emt 0:00:58]} c5 {[%emt 0:01:57]} 28. dxc5 {[%emt 0:03:12]} Nxc5 {[%emt 0:00:13]} 29. Bd4 {[%emt 0:01:21]} Ncd7 {[%emt 0:01:38]} 30. Bxb6 {[%emt 0:01:35]} Nxb6 {[%emt 0:00:12]} 31. Ke3 {[%emt 0:01:01]} dxe4 {[%emt 0:02:22]} 32. Nxe4 {[%emt 0:00:13]} Kf8 {[%emt 0:00:09]} 1/2-1/2

[Event "Austrian Women Bundesliga 2023-24"]
[Site "Austria"]
[Date "2024.04.14"]
[Round "9.8"]
[White "Krassnitzer, Julia"]
[Black "Mihelic, Vesna"]
[Result "0-1"]
[ECO "C56"]
[WhiteElo "1875"]
[BlackElo "2157"]
[Annotator "RC"]
[PlyCount "56"]
[EventDate "2023.11.21"]
[EventType "team-tourn"]
[EventCountry "AUT"]
[SourceTitle "playchess.com"]
[Source "ChessBase"]
[SourceQuality "1"]
[TimeControl "40/5400+30:1800+30"]

1. e4 {[%emt 0:00:02]} e5 {[%emt 0:00:06]} 2. Nf3 {[%emt 0:00:05]} Nc6 {[%emt 0:00:04]} 3. Bc4 {[%emt 0:00:04]} Bc5 {[%emt 0:00:07]} 4. c3 {[%emt 0:00:05]} Nf6 {[%emt 0:00:05]} 5. d4 {[%emt 0:00:04]} exd4 {[%emt 0:00:06]} 6. O-O {[%emt 0:00:43]} Nxe4 {[%emt 0:11:50]} 7. cxd4 {[%emt 0:00:06]} d5 {[%emt 0:05:13]} 8. dxc5 {[%emt 0:00:31]} dxc4 {[%emt 0:00:07]} 9. Qe2 {[%emt 0:00:13]} Qd3 {[%emt 0:01:49]} 10. Re1 {[%emt 0:00:07]} f5 {[%emt 0:00:49]} 11. Nc3 {[%emt 0:00:22]} O-O {[%emt 0:02:22]} 12. Nxe4 {[%emt 0:00:44]} fxe4 {[%emt 0:00:42]} 13. Qxe4 {[%emt 0:00:12]} Bf5 {[%emt 0:02:05]} 14. Qh4 {[%emt 0:00:06]} Qd5 {[%emt 0:09:39]} 15. Be3 {[%emt 0:05:25]} Bd3 {[%emt 0:16:29]} 16. a3 {[%emt 0:09:53]} Rxf3 {[%emt 0:00:56]} 17. Bf4 {[%emt 0:07:02]} Rf8 {[%emt 0:03:05]} 18. gxf3 {[%emt 0:14:08]} Nd4 {[%emt 0:00:15]} 19. Re3 {[%emt 0:00:27]} Nxf3+ {[%emt 0:00:17]} 20. Rxf3 {[%emt 0:00:07]} Qxf3 {[%emt 0:00:04]} 21. Be5 {[%emt 0:04:25]} Be4 {[%emt 0:00:24]} 22. Kf1 {[%emt 0:00:13]} Qh1+ {[%emt 0:00:55]} 23. Ke2 {[%emt 0:00:06]} Bd3+ {[%emt 0:00:16]} 24. Kd2 {[%emt 0:01:43]} Qxa1 {[%emt 0:09:06]} 25. Qe7 {[%emt 0:02:09]} Qg1 {[%emt 0:00:25]} 26. Bd4 {[%emt 0:01:33]} Qg4 {[%emt 0:00:41]} 27. Qxc7 {[%emt 0:00:54]} Qe2+ {[%emt 0:00:40]} 28. Kc3 {[%emt 0:00:05]} Qe1# {[%emt 0:00:06]} 0-1